Cogmind - Beta 16 @@@ ROGUE MODE // 2025.10.24 @ 08:26:22 Player: H3-MLN Result: Destroyed by H-77 Assassin with Coil Gun Performance ------------- Evolutions (6) 3000 Regions Visited (21) 4200 Robots Destroyed (437) 2185 Value Destroyed (16826) 16826 Prototype IDs (54) 1080 Alien Tech Used (0) 0 Bonus (12885) 12885 TOTAL SCORE: 40176 Bonus ------- Triggered High Security 500 High Alert Combat Kills 6506 Follower Combat Kills 3360 Awakened Behemoth Slayer 1000 Entered DSFs 500 Network Hubs Disabled 800 Met Imprinter 300 Was Imprinted 300 Built Enhanced Grunts 300 A7 Reached Mainframe 300 Met R17 at Cetus 500 Friendly Fire -1481 Cogmind --------- Core Integrity 0/1150 Matter 179/300 Energy 99/100 System Corruption 13% Temperature Cool (0) Movement Core (50) Location -4/Factory Parts ------- > --- POWER (1) -------- (None) > --- PROPULSION (6) --- Gravmag Array > --- UTILITY (8) ------ Core Analyzer Graphene Brace > --- WEAPON (4) ------- (None) > --- INVENTORY (5) ---- Light Neutrino Core Armored Leg Improved Gyrokinetic Inverter Matter Compressor (250) CR-A16's Behemoth Slayer Peak State ------------ > --- POWER ------------ Cooled Fission Core > --- PROPULSION ------- Heavy Treads Improved Gyrokinetic Inverter Improved Linear Gravjet Improved Linear Gravjet Improved Linear Gravjet > --- UTILITY ---------- Advanced Coolant Injector High-capacity Storage Unit Enhanced Optical Array Advanced Signal Interpreter 0b10 Decoder Chip [Scout] Core Analyzer Advanced Particle Charger Centrium Medium Armor Plating > --- WEAPON ----------- Heavy Gatling Laser Heavy Gatling Laser Heavy Gatling Laser Antimatter Cannon > --- INVENTORY -------- Cooled Airjet Zionite Glidesys II Improved Cooling System Advanced Coolant Injector Matter Compressor Advanced Sensor Array Active Sensor Suite Advanced Transmission Jammer Graphene Brace Advanced Shield Generator Hacking Drone Bay Heavy Gatling Laser Heavy Gatling Laser Heavy Neutron Cannon Antimatter Cannon Antimatter Cannon Rocket Array CR-A16's Behemoth Slayer [Rating: 130] Favorites ----------- Power Zionite Light DM Reactor Engine Deuterium Engine Power Core Cooled Fission Core Reactor Zionite Light DM Reactor Propulsion Cooled Airjet Treads Light Treads Leg Armored Leg Wheel Subdweller Monowheel Hover Unit Cooled Airjet Flight Unit Nuclear Pulse Thruster Utility Core Analyzer Device Improved Cooling System Storage Large Storage Unit Processor Core Analyzer Hackware Authchip [Propulsion] Protection Centrium Medium Armor Plating Weapon Hypervelocity Gauss Rifle Energy Gun Heavy Gatling Laser Energy Cannon Subdweller Beam Cannon Ballistic Gun Hypervelocity Gauss Rifle Ballistic Cannon Antimatter Cannon Launcher Rocket Array Special Weapon Multitool Slashing Weapon Greatsword Piercing Weapon CR-A16's Behemoth Slayer Special Melee Weapon Dirty Datajack Build | -11 -10 -10 -10 -8 -7 -7 -7 -7 -7 -7 -6 -6 -6 -6 -6 -5 -5 -5 -5 -5 -4 ------- Run | Yrd Mat Min Sub Mat Fac Was Fac Low Low Zio Pro Fac Was Fac DSF Fac Ext Cet Arc Hub Fac Slots Evolved 12 | . . . . 4 2 . . . . . . 2 . . . 2 . . . . 2 Power . | . . . . . . . . . . . . . . . . . . . . . . Propulsion 4 | . . . . 2 . . . . . . . 1 . . . 1 . . . . . Utility 6 | . . . . . 2 . . . . . . 1 . . . 1 . . . . 2 Weapon 2 | . . . . 2 . . . . . . . . . . . . . . . . . Parts Attached 278 | 7 9 1 7 16 32 8 10 3 1 3 7 33 8 . 10 30 9 6 3 8 67 Power 24 | 1 . 1 . 1 4 . 1 . . . 1 2 1 . . 2 1 . . . 9 Engine 6 | 1 . 1 . 1 2 . . . . . 1 . . . . . . . . . . Core 8 | . . . . . 2 . . . . . . 2 . . . 2 . . . . 2 Reactor 10 | . . . . . . . 1 . . . . . 1 . . . 1 . . . 7 Propulsion 89 | 2 2 . 4 10 8 . 1 1 1 . 5 11 . . 2 13 3 1 2 1 22 Treads 9 | 2 . . 1 . . . . . . . 1 1 . . . . . 1 . . 3 Leg 18 | . . . . 4 . . . . . . 2 3 . . . . . . . . 9 Wheel 7 | . 2 . 3 1 . . . . . . . 1 . . . . . . . . . Hover 45 | . . . . 5 8 . 1 1 . . 1 1 . . . 12 3 . 2 1 10 Flight 10 | . . . . . . . . . 1 . 1 5 . . 2 1 . . . . . Utility 84 | 2 2 . 1 1 10 . 5 1 . . . 12 4 . 3 12 4 2 1 4 20 Device 36 | 1 . . . . 5 . 1 . . . . 5 4 . . 2 1 . 1 2 14 Storage 9 | 1 1 . . . 1 . . . . . . 2 . . . 1 2 . . 1 . Processor 15 | . . . . . 2 . 1 . . . . 4 . . . 5 . . . 1 2 Hackware 8 | . . . . . . . 2 . . . . . . . 3 2 . . . . 1 Protection 16 | . 1 . 1 1 2 . 1 1 . . . 1 . . . 2 1 2 . . 3 Artifact . | . . . . . . . . . . . . . . . . . . . . . . Weapon 81 | 2 5 . 2 4 10 8 3 1 . 3 1 8 3 . 5 3 1 3 . 3 16 Energy Gun 19 | . . . . . 3 2 . 1 . . . 2 . . . . . 1 . . 10 Energy Cannon 5 | . . . 1 . . . 1 . . . . . 1 . . . . . . . 2 Ballistic Gun 21 | 2 3 . 1 1 4 2 . . . . . . . . 3 2 1 2 . . . Ballistic Cannon 19 | . 1 . . 1 1 4 . . . . . 3 1 . 2 . . . . 3 3 Launcher 8 | . 1 . . 2 2 . . . . . . 2 . . . 1 . . . . . Special Weapon 1 | . . . . . . . . . . 1 . . . . . . . . . . . Impact Weapon . | . . . . . . . . . . . . . . . . . . . . . . Slashing Weapon 4 | . . . . . . . 2 . . 1 . . . . . . . . . . 1 Piercing Weapon 2 | . . . . . . . . . . . 1 1 . . . . . . . . . Special Melee Weapon 2 | . . . . . . . . . . 1 . . 1 . . . . . . . . Unidentified Prototypes 31 | . . . . 2 7 . . . . . . 3 1 . . 4 4 4 . 1 5 Corrupted Parts 2 | . . . . . . . . . . . . . . . . . . . . 2 . System Corruption 13 | . . . . . . . . . . . . . . . . . . . . 13 . Parts Lost 68 | . . . 1 . 3 . . 2 1 . 4 8 . . 1 1 5 1 . 2 39 Power 5 | . . . . . . . . . . . . . . . . . . . . . 5 Propulsion 33 | . . . . . 2 . . 1 1 . 3 5 . . 1 1 3 1 . 1 14 Utility 12 | . . . 1 . 1 . . . . . . 1 . . . . 1 . . . 8 Weapon 18 | . . . . . . . . 1 . . 1 2 . . . . 1 . . 1 12 Highest Loss Streak 16 | . . . 1 . 1 . . 2 1 . 1 4 . . 1 1 3 1 . 1 16 To Critical Strikes . | . . . . . . . . . . . . . . . . . . . . . . Average Backups 14 | 2 9 18 19 18 9 9 9 9 9 9 9 9 9 10 9 14 14 14 15 15 18 Power . | . 1 1 1 1 . . . . . . . . . 1 . . . 1 1 1 1 Propulsion 1 | 1 2 4 4 1 2 3 1 . . . . . . . . 2 2 . . . 3 Utility 5 | . 2 5 4 4 1 1 3 4 5 5 6 5 6 6 5 5 6 7 7 7 8 Weapon 5 | . 2 5 6 9 3 3 4 3 3 4 2 2 1 2 1 4 4 6 7 6 5 Tool/Special . | . . . . . . . . . . . . . . . . . . . . . . Unused Backups 47 | . 1 . 8 6 7 1 1 1 1 3 . 2 1 . . 2 2 1 . 1 9 Power 4 | . . . 2 1 . . . . . . . . . . . . . . . . 1 Propulsion 10 | . . . 3 1 1 . 1 . . . . . . . . 1 . . . . 3 Utility 21 | . . . 2 3 3 1 . 1 1 2 . 2 . . . 1 . 1 . . 4 Weapon 10 | . 1 . 1 . 2 . . . . 1 . . 1 . . . 2 . . 1 1 Tool/Special 2 | . . . . 1 1 . . . . . . . . . . . . . . . . Average Slot Usage (%) 92 | . 100 100 100 84 85 85 84 76 80 80 81 80 87 86 87 91 99 94 99 98 90 Engine 2 | . 14 14 14 7 2 . . . . . 4 4 . . . . . . . . . Reactor 3 | . . . . . . . 4 6 6 6 1 . . . . . 2 5 5 5 3 Treads 2 | . 14 14 14 2 . . . . . . 4 3 . . . . . . . . 1 Leg 4 | . . . . 14 6 6 6 6 6 6 6 5 . . . . . . . . 14 Wheel 1 | . 13 14 14 . . . . . . . . . . . . . . . . . . Hover 20 | . . . . 16 24 25 25 24 20 18 12 9 6 6 . 28 34 29 34 33 12 Flight 1 | . . . . . . . . . 3 6 3 9 26 26 31 6 . . . . . Device 4 | . 2 . . . 5 6 3 . . . . 3 3 6 2 4 1 5 5 8 12 Storage 6 | . 14 14 14 7 6 6 6 6 6 6 6 6 9 6 6 5 5 5 5 5 4 Processor 10 | . . . . . 5 6 8 12 12 12 12 9 20 20 15 15 23 12 11 11 14 Protection 7 | . 11 14 14 7 5 6 5 6 6 6 6 3 . . . 2 3 9 10 7 3 Energy Gun 3 | . . . . . 6 9 9 2 5 3 5 4 . . . . . . . . 9 Ballistic Gun 12 | . 25 14 18 23 16 10 9 . . . . . . . 2 13 22 22 23 22 1 Ballistic Cannon 2 | . . 13 1 1 . 1 . 2 5 . 4 3 2 . 3 . . . . . 5 Slashing Weapon 1 | . . . . . . . 2 9 6 9 7 5 . . . . . . . . 1 Peak Build Rating 130 | 7 11 14 19 58 71 77 82 77 78 77 81 97 89 70 77 95 101 104 102 110 130 Average Rating 84 | 5 10 13 16 53 64 71 79 76 76 75 76 83 71 70 67 84 96 96 101 99 119 On Entrance 63 | . 7 11 14 19 55 68 77 77 77 76 76 75 60 70 70 74 93 97 98 102 104 Avg Prop Armor Cover (%) 8 | . 8 8 9 6 6 7 6 6 7 9 12 15 8 8 8 . . . 11 . 7 Naked Turns . | . . . . . . . . . . . . . . . . . . . . . . Heaviest Build 104 | 13 58 62 68 77 48 57 53 48 50 45 47 64 64 20 36 69 68 77 70 92 104 Greatest Support 102 | 40 40 16 20 102 36 36 36 36 36 26 36 24 24 24 30 66 67 59 53 54 100 Greatest Overweight (x) 23 | . 3 3 3 7 1 1 1 1 1 1 5 9 2 . 1 2 1 1 23 1 2 Average Overweight (x) 2 | . 2 3 3 1 . . . 1 1 1 2 2 . . . . . . 16 1 . Largest Inventory Capacity 20 | 8 20 20 20 20 20 10 10 10 10 10 10 10 10 10 10 15 15 15 15 20 20 Average Capacity 14 | 6 15 20 20 20 10 10 10 10 10 10 10 10 10 10 10 14 15 15 15 15 19 Most Carried 20 | 5 13 20 20 20 19 10 10 10 10 10 10 10 10 10 10 15 15 15 15 20 20 Average Carried 14 | 2 9 18 19 18 9 9 9 9 9 9 9 9 9 10 9 14 14 14 15 15 19 Final Capacity 20 | 8 20 20 20 20 10 10 10 10 10 10 10 10 10 10 10 15 15 15 15 20 5 Final Carried 20 | 5 13 20 20 20 10 10 10 9 10 10 10 10 10 10 10 15 15 15 15 20 5 Class Distribution -------------------- 29% | Mutant 27% | Commander-Tank 8% | Commander-Mutant 5% | Gunner 5% | Tank 4% | Skirmisher 4% | Scavenger-Gunner 3% | Commander-Gunner Dominant Class ---------------- Mutant | -10/Materials Mutant | -10/Mines Mutant | -10/Subcaves Tank | -8/Materials Gunner | -7/Factory Scavenger-Gunner | -7/Waste Derelict-Tank | -7/Factory Mutant | -7/Lower Caves Commander-Mutant | -7/Lower Caves Commander-Mutant | -7/Zion Mutant | -6/Proximity Caves Mutant | -6/Factory Sprinter | -6/Waste Sprinter | -6/Factory Sprinter | -6/DSF Gunner | -5/Factory Commander-Gunner | -5/Extension Commander-Tank | -5/Cetus Commander-Tank | -5/Archives Commander-Gunner | -5/Hub_04(d) Mutant | -4/Factory Resources | -11 -10 -10 -10 -8 -7 -7 -7 -7 -7 -7 -6 -6 -6 -6 -6 -5 -5 -5 -5 -5 -4 ----------- Run | Yrd Mat Min Sub Mat Fac Was Fac Low Low Zio Pro Fac Was Fac DSF Fac Ext Cet Arc Hub Fac Matter Collected 12659 | 290 63 200 663 653 1312 480 337 198 87 50 176 838 748 . 85 1204 1444 354 375 905 2197 Remotely . | . . . . . . . . . . . . . . . . . . . . . . Salvage Created 21031 | 115 107 149 643 734 2307 1516 664 729 51 . 389 1432 . . . 1007 3063 387 255 1295 6188 Parts 914 | 9 4 18 38 46 139 15 37 27 3 . 11 67 . . . 66 137 20 20 70 187 Haulers Intercepted 14 | . . . . . 5 . 2 . . . . 1 . . . 2 2 . . 1 1 Recyclers Shooed 14 | . . . . 3 1 . . . . . . 1 . . . . 2 . . . 7 Parts Field Recycled . | . . . . . . . . . . . . . . . . . . . . . . Retrieved Matter . | . . . . . . . . . . . . . . . . . . . . . . Parts Self-Destructed 47 | . . . 15 . . . . 17 11 . 4 . . . . . . . . . . Prevented 10 | . . . . . . . . 4 2 . 4 . . . . . . . . . . Parts Restored . | . . . . . . . . . . . . . . . . . . . . . . Kills | -11 -10 -10 -10 -8 -7 -7 -7 -7 -7 -7 -6 -6 -6 -6 -6 -5 -5 -5 -5 -5 -4 ------- Run | Yrd Mat Min Sub Mat Fac Was Fac Low Low Zio Pro Fac Was Fac DSF Fac Ext Cet Arc Hub Fac Combat Hostiles Destroyed 269 | . 2 5 12 14 30 6 7 15 2 . 6 18 . . . 13 35 4 1 14 85 Melee 7 | . . . . . . . 2 3 . . . 2 . . . . . . . . . Guns 148 | . 2 1 5 6 13 5 5 2 . . 2 4 . . . 7 21 4 1 14 56 Cannons 25 | . . 2 4 1 . . . . . . . 2 . . . . . . . . 16 AOE 77 | . . 2 2 7 17 1 . 9 2 . 2 10 . . . 6 14 . . . 5 Classes Destroyed 26 | 2 2 3 3 3 2 1 . 3 . . 1 1 . . . 1 1 . . 1 2 Worker 55 | . . 1 . 3 15 . 1 . . . . 1 . . . 1 2 . . 2 29 Builder 31 | . . 2 . 2 6 . 1 . . . . 12 . . . . . . . . 8 Tunneler 9 | 2 . . . . 1 . 1 . . . . 1 . . . 1 1 . . . 2 Hauler 14 | . . . . . 5 . 2 . . . . 1 . . . 2 2 . . 1 1 Recycler 33 | 1 . . . 2 7 . 2 . . . . 3 . . . . 6 . . 1 11 Mechanic 4 | . . . . . . . . . . . . 1 . . . . 1 . . . 2 Operator 11 | . . . . 1 2 . . . . . . 2 . . . . 2 . 4 . . Turret 1 | . . . 1 . . . . . . . . . . . . . . . . . . Watcher 9 | . 1 . . 1 3 . 1 . . . . . . . . . . . . 1 2 Swarmer 43 | . . 3 3 6 7 . . 4 2 . 3 . . . . 5 10 . . . . Saboteur 4 | . . . . . . . . . . . . . . . . . . . . . 4 Grunt 111 | . 2 2 1 6 15 . 4 5 . . . 12 . . . 3 13 . . 4 44 Brawler 5 | . . . . . . . . 3 . . . . . . . . . . . . 2 Duelist 8 | . . . . . . . . 1 . . . . . . . . 1 . . . 6 Protector 1 | . . . . . . . . . . . . . . . . . . . . . 1 Sentry 31 | . . . . 1 3 . 3 1 . . 1 3 . . . 3 8 . 1 3 4 Demolisher 1 | . . . . . . . . . . . . . . . . . . . . . 1 Specialist 2 | . . . . . . . . . . . . . . . . . . . . 2 . Hunter 16 | . . . . 1 4 . . . . . 1 . . . . . . . . 3 7 Programmer 22 | . . . . . 1 . . . . . . 3 . . . 3 1 . . 2 12 Behemoth 2 | . . . . . . . . . . . 1 . . . . . 1 . . . . Compactor 6 | . . . . . . 6 . . . . . . . . . . . . . . . Armor Guard 1 | . . . . . . . . . . . . . . . . . . . . . 1 Cetus Guard 4 | . . . . . . . . . . . . . . . . . . 4 . . . Quarantine Guard 1 | . . . . . . . . . . . . . . . . . . . . . 1 Immortal 1 | . . . . . . . . . . . . . . . . . . . . . 1 Combat Programmer 1 | . . . . . . . . . . . . . . . . . . . . . 1 Subdweller 9 | . . . 9 . . . . . . . . . . . . . . . . . . Zionite 2 | . . . 2 . . . . . . . . . . . . . . . . . . Z-Light 2 | . . . . . . . . . . . . . . . . . 2 . . . . Thug 2 | . . . . . . . . . . . . . . . . 1 1 . . . . Martyr 1 | . . . . . . . . . . . . . . . . 1 . . . . . Guerrilla 1 | . . . . . . . . . . . . . . . . . . 1 . . . Mutant 2 | . . . . . . . . 1 . . . 1 . . . . . . . . . Best Kill Streak 18 | 3 2 4 2 5 18 3 3 7 2 . 3 7 . . . 7 11 3 2 4 15 Combat Bots Only 15 | . 2 3 2 4 5 3 3 7 2 . 3 6 . . . 5 10 3 1 3 15 Max Kills in Single Turn 14 | 1 1 3 2 2 14 1 2 3 2 . 1 6 . . . 5 9 1 1 2 2 Gunslinging 1 | . . . 1 . . . 1 . . . . . . . . . 1 . . 1 1 Exploded 8 | . . 2 1 2 4 1 . 3 2 . 1 3 . . . 5 8 . . . 2 Melee 1 | . . . . . . . 1 1 . . . 1 . . . . . . . . . Uniques/NPCs Destroyed . | . . . . . . . . . . . . . . . . . . . . . . Combat | -11 -10 -10 -10 -8 -7 -7 -7 -7 -7 -7 -6 -6 -6 -6 -6 -5 -5 -5 -5 -5 -4 -------- Run | Yrd Mat Min Sub Mat Fac Was Fac Low Low Zio Pro Fac Was Fac DSF Fac Ext Cet Arc Hub Fac Hostile Shots Fired 1317 | . 6 7 53 45 101 . 33 38 6 . 53 159 . . . 33 66 4 . 72 641 Missed 411 | . 1 4 20 12 40 . 9 7 1 . 19 49 . . . 15 26 2 . 20 186 Hits 906 | . 5 3 33 33 61 . 24 31 5 . 34 110 . . . 18 40 2 . 52 455 Melee 15 | . . . . . . . . 3 . . . . . . . . . . . . 12 Projectile 891 | . 5 3 33 33 61 . 24 28 5 . 34 110 . . . 18 40 2 . 52 443 AOE 12 | . . . . . . . . . . . . 1 . . 3 . 4 . . 1 3 Critical Strikes 52 | . . . 2 . 2 . . 5 . . . 5 . . . 1 3 . . 2 32 Actively Blocked 16 | . . . . . . . . . . . . . . . . . 1 . . . 15 Part Disruptions 3 | . . . . 1 . . . . . . . . . . . . . . . 1 1 Damage Taken 18651 | . 126 22 562 548 807 . 314 759 87 . 584 1577 . . 98 412 979 45 . 1041 10690 Core 1912 | . 19 . 48 13 34 . 22 165 . . . 195 . . 16 30 69 . . 150 1151 Absorbed by Shields 118 | . . . . . . . . . . . . . . . . . 16 42 . . 60 Reduced by Siege Mode 109 | . . . . . . . . . . . . . . . . . . . . . 109 Redirected to Shielding 123 | . . . . . . . . . . . . . . . . 15 108 . . . . Regen/Repaired (Parts) 629 | . . . . 89 . 6 . . . 75 . . 218 . 47 4 . . . . 190 Core Remaining (%) 81 | 100 . . 73 97 . . . . . . 68 . . . 75 . . . . 75 . Volleys Fired 901 | 10 10 8 88 44 84 19 27 8 3 . 11 51 . . 3 26 62 14 13 44 376 Largest 4 | 2 2 2 2 4 4 4 4 2 1 . 2 2 . . 1 4 4 4 4 4 4 Hottest 400 | 40 46 53 110 170 156 140 228 120 36 . 120 149 . . 110 136 136 136 136 136 400 Shots Fired 1980 | 20 17 15 151 133 229 48 77 14 3 . 17 67 . . 3 77 215 52 51 154 637 Gun 1626 | 20 14 7 112 103 202 36 66 2 . . 6 37 . . . 70 204 51 51 150 495 Cannon 268 | . . 7 36 19 10 . 11 1 . . 6 20 . . 3 5 6 1 . 4 139 Launcher 86 | . 3 1 3 11 17 12 . 11 3 . 5 10 . . . 2 5 . . . 3 Special . | . . . . . . . . . . . . . . . . . . . . . . Kinetic 1261 | 20 14 14 123 116 159 24 42 1 . . 6 20 . . . 70 204 51 51 154 192 Thermal 607 | . . . 25 6 27 12 35 2 . . 6 37 . . 3 5 6 1 . . 442 Explosive 49 | . 3 1 3 1 5 12 . 4 . . . 10 . . . 2 5 . . . 3 Electromagnetic 63 | . . . . 10 38 . . 7 3 . 5 . . . . . . . . . . Robot Hit Streak 33 | 5 6 5 17 6 18 7 7 11 1 . 7 28 . . 3 7 16 10 13 12 33 Robot Miss Streak 6 | 3 2 2 2 5 4 2 3 1 1 . 3 2 . . 1 5 3 2 4 3 6 Penetration Max 2 | . . . . . . . . . . . . . . . . 1 2 1 1 2 1 Secondary Targets 16 | . . . 1 . . 1 2 . . . . . . . . 1 2 2 . 4 3 Max Gunslinging Chain 1 | . . . 1 . . 1 1 . . . . . . . . 1 1 1 . 1 1 Capacitor 202 | . . . . . . . . . . . . . . . . . . . . . 202 Shots Hit Robots 1284 | 11 7 10 88 62 137 31 29 18 1 . 17 63 . . 4 43 124 17 28 97 497 Core Hits 1091 | 6 5 8 26 35 103 13 15 26 4 . 12 113 . . . 46 150 12 14 52 451 Critical Kills 73 | . . . 1 . 1 . . . . . . . . . . 9 29 5 5 14 9 Critical Parts Destroyed 73 | . . . 2 . . . . . . . . . . . . 11 13 8 4 26 9 Critical Strikes 179 | . . . 4 . 2 2 2 2 . . 2 3 . . . 21 47 18 10 42 24 Burn 4 | . . . . . 1 2 1 . . . . . . . . . . . . . . Meltdown 1 | . . . 1 . . . . . . . . . . . . . . . . . . Destroy 158 | . . . 3 . 1 . . . . . . . . . . 20 46 18 10 42 18 Blast 8 | . . . . . . . . . . . 2 . . . . . . . . . 6 Sever 3 | . . . . . . . 1 2 . . . . . . . . . . . . . Impale 5 | . . . . . . . . . . . . 3 . . . 1 1 . . . . Melee Attacks 70 | . . . . . . . 18 10 . 1 11 21 . . 2 4 3 . . . . Impact . | . . . . . . . . . . . . . . . . . . . . . . Slashing 45 | . . . . . . . 18 10 . 1 7 9 . . . . . . . . . Piercing 25 | . . . . . . . . . . . 4 12 . . 2 4 3 . . . . Sneak Attacks 13 | . . . . . . . 5 . . . . 6 . . . 2 . . . . . Combat Hostiles . | . . . . . . . . . . . . . . . . . . . . . . Follow-up Attacks 3 | . . . . . . . . . . . 1 2 . . . . . . . . . Damage Inflicted 43447 | 107 114 284 1714 1575 5907 1889 1196 1737 163 . 763 4252 . . 166 1075 3180 242 212 906 17965 Guns 22863 | 107 114 75 1164 873 2252 394 474 31 . . 77 816 . . . 384 1117 242 212 867 13664 Cannons 4457 | . . 83 357 197 140 . . . . . 91 315 . . 124 . . . . 39 3111 Explosions 13791 | . . 126 193 505 3515 1495 . 1350 163 . 194 2428 . . . 596 2036 . . . 1190 Melee 2336 | . . . . . . . 722 356 . . 401 693 . . 42 95 27 . . . . Ramming . | . . . . . . . . . . . . . . . . . . . . . . Kinetic 11718 | 107 114 158 1196 1018 1615 204 212 . . . 91 315 . . . 384 1117 242 212 906 3827 Thermal 16937 | . . . 325 52 1828 190 262 31 74 . 77 816 . . 124 . . . . . 13158 Explosive 10025 | . . 126 193 95 1221 1495 . 855 . . . 2428 . . . 596 2036 . . . 980 Electromagnetic 2431 | . . . . 410 1243 . . 495 89 . 194 . . . . . . . . . . Impact . | . . . . . . . . . . . . . . . . . . . . . . Slashing 1620 | . . . . . . . 722 356 . . 299 243 . . . . . . . . . Piercing 716 | . . . . . . . . . . . 102 450 . . 42 95 27 . . . . Highest Corruption 14 | . . . . 1 1 1 1 3 3 3 . 1 1 2 2 1 . 3 3 14 13 Average Corruption 1 | . . . . 1 1 1 1 1 3 3 . 1 1 1 2 1 . 3 2 1 2 Corruption Purged 6 | . . . . . 1 . . . . . . 1 . . . . . . 3 . 1 Corruption Blocked . | . . . . . . . . . . . . . . . . . . . . . . Effects 86 | . . . . 2 5 2 10 13 11 1 . 3 4 . 2 3 . 7 5 . 18 Message Errors 16 | . . . . . 3 . 2 2 3 1 . . 1 . . 1 . 1 1 . 1 Matter Fused 21 | . . . . 1 . 1 3 2 3 . . 2 2 . . 1 . 1 1 . 4 Heat Flow Errors 7 | . . . . . 1 1 . 1 2 . . . . . . . . 1 . . 1 Energy Discharges 17 | . . . . . 1 . 1 3 2 . . 1 . . . . . 2 1 . 6 Parts Rejected 1 | . . . . . . . . . . . . . . . 1 . . . . . . Parts Fused 2 | . . . . . . . . . 1 . . . . . . . . . 1 . . Data Loss (minor) 9 | . . . . . . . 1 1 . . . . 1 . 1 1 . 1 . . 3 Data Loss (major) 3 | . . . . 1 . . . 1 . . . . . . . . . . . . 1 Misfires 5 | . . . . . . . 2 2 . . . . . . . . . . . . 1 Alerts 2 | . . . . . . . 1 1 . . . . . . . . . . . . . Weapon Failures 3 | . . . . . . . . . . . . . . . . . . 1 1 . 1 Overload Shots . | . . . . . . . . . . . . . . . . . . . . . . Overflow Damage 951 | . . . . 59 380 . 78 18 . . 47 153 . . 10 11 18 . . . 177 Projectiles 24 | . . . . . 1 . . . . . . . . . 10 . . . . . 13 Explosions 654 | . . . . 59 379 . . 18 . . . 5 . . . 11 18 . . . 164 Melee 273 | . . . . . . . 78 . . . 47 148 . . . . . . . . . Knockbacks 28 | . . . . 2 1 . . . . . 2 . . . . . . . . . 23 Impact . | . . . . . . . . . . . . . . . . . . . . . . Kinetic 26 | . . . . 1 1 . . . . . 2 . . . . . . . . . 22 Secondary 2 | . . . . 1 . . . . . . . . . . . . . . . . 1 Self-Inflicted Damage 1090 | . 59 . 15 42 52 . . 143 16 . 16 93 . . . 45 32 . . . 577 Shots 38 | . 1 . 1 4 1 . . 5 1 . 1 3 . . . 2 2 . . . 17 Rammed 1 | . . . . . 1 . . . . . . . . . . . . . . . . Targets Rammed 1 | . . . . . 1 . . . . . . . . . . . . . . . . Kicked . | . . . . . . . . . . . . . . . . . . . . . . Crushed . | . . . . . . . . . . . . . . . . . . . . . . Highest Temperature 343 | . 46 24 30 281 322 205 336 235 263 . 207 300 . . 80 274 296 61 12 24 343 Average Temperature 80 | . 16 11 8 80 67 30 110 56 127 . 86 104 . . 46 57 76 8 5 6 102 Received Heat Transfer 3335 | . 39 . 78 198 228 . 87 209 . . 60 561 . . . 72 132 . . 54 1617 Effects 11 | . . . . 3 1 . 1 . . . . 2 . . . 3 1 . . . . Energy Bleed 3 | . . . . . 1 . 1 . . . . . . . . . 1 . . . . Interference 8 | . . . . 3 . . . . . . . 2 . . . 3 . . . . . Siege Activations 7 | . . . . . . . . . . . . . . . . . . . . . 7 Total Turns 523 | . . . . . . . . . . . . . . . . . . . . . 523 Longest Duration 212 | . . . . . . . . . . . . . . . . . . . . . 212 Martial Activations . | . . . . . . . . . . . . . . . . . . . . . . Shielding Activations . | . . . . . . . . . . . . . . . . . . . . . . Robots Disrupted 1 | . . . . . 1 . . . . . . . . . . . . . . . . Combat Hostiles 1 | . . . . . 1 . . . . . . . . . . . . . . . . Robots Corrupted 2 | . . . . . . . . 1 . . 1 . . . . . . . . . . Combat Hostiles 2 | . . . . . . . . 1 . . 1 . . . . . . . . . . Parts Fried 13 | . . . . 3 7 . . . . . 1 . . . . . 1 . . 1 . Impact Corruptions . | . . . . . . . . . . . . . . . . . . . . . . Robots Melted 10 | . . . 1 . . . . . . . . 1 . . . . . . . . 8 Combat Hostiles 9 | . . . 1 . . . . . . . . . . . . . . . . . 8 Parts Melted 44 | . . . 1 . 1 . . . 1 . 1 7 . . . . . . . 1 32 Heat Transferred 25454 | . . . 444 74 1803 518 481 75 100 . 175 1758 . . . . . . . . 20026 Parts Sabotaged 4 | . . . . . . . . . . . . . . . . . . . . . 4 Parts Stolen . | . . . . . . . . . . . . . . . . . . . . . . Parts Stripped . | . . . . . . . . . . . . . . . . . . . . . . Power Chain Reactions 7 | . . . . 2 4 . . . 1 . . . . . . . . . . . . Alert | -11 -10 -10 -10 -8 -7 -7 -7 -7 -7 -7 -6 -6 -6 -6 -6 -5 -5 -5 -5 -5 -4 ------- Run | Yrd Mat Min Sub Mat Fac Was Fac Low Low Zio Pro Fac Was Fac DSF Fac Ext Cet Arc Hub Fac Maximum Alert Level 5 | . . . . 1 4 2 3 . . . . 2 . . 1 4 4 3 2 4 5 Low Security (%) 48 | 100 100 100 . 97 35 . 5 . . . . 76 100 100 35 . . . 90 20 . Level 1 8 | . . . . 2 4 60 35 . . . . 20 . . 64 13 . . 6 14 . Level 2 12 | . . . . . 20 39 42 . . . . 2 . . . 36 11 . 3 6 22 Level 3 17 | . . . . . 30 . 16 . . . . . . . . 38 69 99 . 40 28 Level 4 10 | . . . . . 8 . . . . . . . . . . 11 19 . . 17 38 Level 5 2 | . . . . . . . . . . . . . . . . . . . . . 9 High Security . | . . . . . . . . . . . . . . . . . . . . . . Max Security . | . . . . . . . . . . . . . . . . . . . . . . Sterilizations 1 | . . . . . . . . . . . . . . . 1 . . . . . . Peak Influence 1980 | 5 55 80 . 207 1218 434 757 . . . . 481 167 21 393 1235 1324 959 477 1134 1980 Initial 705 | . . 8 . . 88 425 191 . . . . . 167 11 7 205 602 705 343 . 522 Average 445 | . 18 13 . 119 550 366 503 . . . . 112 94 17 201 707 923 865 42 717 1086 Influence Increases 14919 | 15 131 140 222 508 1680 46 1300 295 91 . 261 1055 . 10 463 1604 2099 386 204 1811 2598 Destroy 0b10 Robot/C 6880 | . 40 100 160 280 660 . 420 280 60 . 120 500 . . 200 660 840 160 80 740 1580 Destroy 0b10 Robot/NC 915 | 15 5 15 . 45 200 . 65 5 . . 10 105 . 5 . 20 75 10 20 40 280 Destroy Leader 1190 | . 12 20 10 72 158 . 118 10 10 . 30 140 . . 20 84 72 . . 158 276 Allied During Kill 3007 | . . . 22 . 37 . 409 . 21 . 101 99 . 5 220 381 784 170 100 658 . Successful Hack 157 | . . . . 5 28 . 25 . . . . 14 . . . 24 20 . . . 41 Select Force Hacks 20 | . . . . . 20 . . . . . . . . . . . . . . . . Disable Machine 1035 | . 45 . . 15 450 . 135 . . . . 30 . . . 45 90 15 . 75 135 Anti-Garrison Action 150 | . . . . . . . . . . . . . . . . 150 . . . . . Destroy Structure 1130 | . 29 5 . 31 97 46 98 . . . . 107 . . 23 150 158 16 4 110 256 Partial Spotted 30 | . . . . . . . . . . . . . . . . 15 . . . . 15 Lose Combat Pursuer 405 | . . . 30 60 30 . 30 . . . . 60 . . . 75 60 15 . 30 15 Influence Decreases 12969 | 15 109 162 222 314 658 989 828 707 372 52 261 577 461 16 81 768 2067 788 1063 744 1715 Entered New Map 4139 | . . 14 . . 106 791 82 277 64 52 . . 311 6 4 188 627 556 516 . 545 Time Decay 6061 | 15 109 148 202 314 482 198 486 410 278 . 214 392 150 10 . 410 440 222 527 284 770 Lost Part 657 | . . . . . 30 . . 20 10 . 27 80 . . 10 10 50 10 . 20 390 Lost Ally 1212 | . . . 20 . 40 . 260 . 20 . 20 105 . . 67 160 200 . 20 290 10 Purge Threat 900 | . . . . . . . . . . . . . . . . . 750 . . 150 . Squads Dispatched 84 | . . 1 . 4 11 . 11 . . . . 11 . 1 2 7 1 . . 10 25 Investigation 14 | . . 1 . 2 3 . 2 . . . . 1 . 1 . 1 . . . . 3 Extermination 17 | . . . . . 3 . 2 . . . . 3 . . . 1 . . . 1 7 Reinforcement 29 | . . . . 2 4 . 3 . . . . 6 . . 2 2 . . . 7 3 Assault 19 | . . . . . 1 . . . . . . . . . . 3 1 . . 2 12 Garrison 5 | . . . . . . . 4 . . . . 1 . . . . . . . . . Intercept . | . . . . . . . . . . . . . . . . . . . . . . Searches Triggered . | . . . . . . . . . . . . . . . . . . . . . . Unchained Authorized 1 | . . . . . . . . . . . . . . . . . . . . . 1 Construction Impeded 7 | . . . . . 1 . 1 . . . . 3 . . . . . . . 2 . Haulers Reinforced 5 | . . . . . 1 . 1 . . . . 1 . . . . . . . 1 1 Active Scanning Responses . | . . . . . . . . . . . . . . . . . . . . . . Cargo Convoy Interrupts . | . . . . . . . . . . . . . . . . . . . . . . Stealth | -11 -10 -10 -10 -8 -7 -7 -7 -7 -7 -7 -6 -6 -6 -6 -6 -5 -5 -5 -5 -5 -4 --------- Run | Yrd Mat Min Sub Mat Fac Was Fac Low Low Zio Pro Fac Was Fac DSF Fac Ext Cet Arc Hub Fac Distress Signals 18 | . . . . . 2 . . . . . . . . . . . 4 2 . 6 4 Communications Jammed 40 | . . . . . . . . . . . . . . . . 2 22 . . . 16 Distress Signals 39 | . . . . . . . . . . . . . . . . 1 22 . . . 16 Times Spotted 439 | . 4 5 22 22 40 6 21 16 4 . 6 28 . . 6 30 50 10 7 29 133 Peak Tracking Total 14 | . 2 3 4 4 4 3 4 7 4 . 3 6 . 1 3 6 8 5 1 5 14 Tactical Retreats 20 | . . . 2 2 2 . 1 . . . . 2 . . . 5 2 1 . 2 1 Traps | -11 -10 -10 -10 -8 -7 -7 -7 -7 -7 -7 -6 -6 -6 -6 -6 -5 -5 -5 -5 -5 -4 ------- Run | Yrd Mat Min Sub Mat Fac Was Fac Low Low Zio Pro Fac Was Fac DSF Fac Ext Cet Arc Hub Fac Traps Triggered 14 | . . . 3 1 1 . 3 . . . . 1 . . 1 1 2 . . . 1 Indirectly . | . . . . . . . . . . . . . . . . . . . . . . Trap Hack Attempts . | . . . . . . . . . . . . . . . . . . . . . . Triggered . | . . . . . . . . . . . . . . . . . . . . . . Disarmed . | . . . . . . . . . . . . . . . . . . . . . . Reprogrammed . | . . . . . . . . . . . . . . . . . . . . . . Reused . | . . . . . . . . . . . . . . . . . . . . . . Traps Extracted . | . . . . . . . . . . . . . . . . . . . . . . Installed . | . . . . . . . . . . . . . . . . . . . . . . Triggered . | . . . . . . . . . . . . . . . . . . . . . . Machines | -11 -10 -10 -10 -8 -7 -7 -7 -7 -7 -7 -6 -6 -6 -6 -6 -5 -5 -5 -5 -5 -4 ---------- Run | Yrd Mat Min Sub Mat Fac Was Fac Low Low Zio Pro Fac Was Fac DSF Fac Ext Cet Arc Hub Fac Machines Disabled 76 | . 3 . 1 1 30 . 9 3 . . 1 2 . . . 4 7 1 . 5 9 Max in Single Turn 23 | . 1 . 1 1 23 . 2 1 . . 1 1 . . . 1 1 1 . 1 2 Garrison Access 3 | . . . . . 1 . . . . . . . . . . 1 . . . 1 . Network Hub 4 | . . . . . . . . . . . . . . . . . . . . 4 . Machines Repaired 2 | . . . . . . . . . . . . 2 . . . . . . . . . Machines Dismantled . | . . . . . . . . . . . . . . . . . . . . . . Machines Sabotaged . | . . . . . . . . . . . . . . . . . . . . . . Overloaded Fab Kills . | . . . . . . . . . . . . . . . . . . . . . . Hacking | -11 -10 -10 -10 -8 -7 -7 -7 -7 -7 -7 -6 -6 -6 -6 -6 -5 -5 -5 -5 -5 -4 --------- Run | Yrd Mat Min Sub Mat Fac Was Fac Low Low Zio Pro Fac Was Fac DSF Fac Ext Cet Arc Hub Fac Machines Accessed 51 | . 3 1 1 2 9 . 9 1 1 1 . 2 . 1 . 6 8 1 . . 5 Terminals 20 | . 2 . . 1 3 . 5 . . . . . . 1 . . 7 1 . . . Fabricators 11 | . . . . . 3 . 3 . . . . 1 . . . 3 . . . . 1 Repair Stations 3 | . . . . 1 . . . . . . . 1 . . . . . . . . 1 Recycling Units 5 | . 1 . . . . . . . . . . . . . . 1 1 . . . 2 Scanalyzers 4 | . . . . . 1 . 1 . . . . . . . . 1 . . . . 1 Garrison Access 3 | . . . . . 2 . . . . . . . . . . 1 . . . . . Total Hacks 139 | . 9 1 1 5 23 . 18 1 1 2 . 4 . 3 . 21 19 1 . . 30 Successful 67 | . 1 1 1 3 9 . 5 1 1 2 . 3 . 1 . 15 8 . . . 16 Failed 70 | . 8 . . 2 13 . 13 . . . . 1 . 2 . 5 11 1 . . 14 Catastrophic 18 | . 1 . . . 8 . 4 . . . . . . . . 2 2 . . . 1 Database Lockouts 2 | . . . . . 1 . . . . . . . . . . 1 . . . . . Manual 139 | . 3 . . 3 8 . 5 . . . . 15 . . . 24 34 1 . 22 24 Terminals 42 | . 4 . . 3 7 . 10 . . . . . . 3 . . 14 1 . . . Fabricators 40 | . . . . . 7 . 7 . . . . 2 . . . 13 . . . . 11 Repair Stations 5 | . . . . 2 . . . . . . . 2 . . . . . . . . 1 Recycling Units 22 | . 5 . . . . . . . . . . . . . . 1 5 . . . 11 Scanalyzers 18 | . . . . . 4 . 1 . . . . . . . . 6 . . . . 7 Garrison Access 6 | . . . . . 5 . . . . . . . . . . 1 . . . . . Terminal Hacks 15 | . . 1 1 1 1 . 3 1 1 2 . . . 1 . . 3 . . . . Part Schematic 2 | . . . . . . . . . . 2 . . . . . . . . . . . Open Door 6 | . . 1 . . . . . 1 1 . . . . . . . 3 . . . . Open DSF 1 | . . . . . . . . . . . . . . 1 . . . . . . . Branch Access Points 1 | . . . . . . . 1 . . . . . . . . . . . . . . Locate Traps 1 | . . . . . 1 . . . . . . . . . . . . . . . . Maintenance Status 1 | . . . . . . . 1 . . . . . . . . . . . . . . Zone Layout 2 | . . . . 1 . . 1 . . . . . . . . . . . . . . Proto ID Catalog 1 | . . . 1 . . . . . . . . . . . . . . . . . . Fabricator Hacks 14 | . . . . . 1 . 1 . . . . 1 . . . 7 . . . . 4 Network Status 1 | . . . . . 1 . . . . . . . . . . . . . . . . Load Schematic 7 | . . . . . . . . . . . . 1 . . . 4 . . . . 2 Build 6 | . . . . . . . 1 . . . . . . . . 3 . . . . 2 Repair Station Hacks 1 | . . . . . . . . . . . . 1 . . . . . . . . . Refit 1 | . . . . . . . . . . . . 1 . . . . . . . . . Recycling Unit Hacks 5 | . 1 . . . . . . . . . . . . . . . 2 . . . 2 Report Inventory 4 | . 1 . . . . . . . . . . . . . . . 1 . . . 2 Retrieve Components 1 | . . . . . . . . . . . . . . . . . 1 . . . . Scanalyzer 11 | . . . . . 3 . 1 . . . . . . . . 5 . . . . 2 Insert Component 4 | . . . . . 1 . . . . . . . . . . 2 . . . . 1 Analyze 4 | . . . . . 1 . . . . . . . . . . 2 . . . . 1 Retrieve Study 3 | . . . . . 1 . 1 . . . . . . . . 1 . . . . . Garrison Access Hacks 1 | . . . . . 1 . . . . . . . . . . . . . . . . Seal Access 1 | . . . . . 1 . . . . . . . . . . . . . . . . Unauthorized Hacks 20 | . . . . 2 3 . . . . . . 1 . . . 3 3 . . . 8 Terminals 1 | . . . . 1 . . . . . . . . . . . . . . . . . Track 1 | . . . . 1 . . . . . . . . . . . . . . . . . Fabricators 7 | . . . . . 3 . . . . . . 1 . . . 2 . . . . 1 Prioritize 1 | . . . . . . . . . . . . . . . . . . . . . 1 Liberate 2 | . . . . . 1 . . . . . . . . . . 1 . . . . . Haulers 1 | . . . . . 1 . . . . . . . . . . . . . . . . Download 1 | . . . . . 1 . . . . . . . . . . . . . . . . Recompile 2 | . . . . . . . . . . . . 1 . . . 1 . . . . . Repair Stations 2 | . . . . 1 . . . . . . . . . . . . . . . . 1 Patch 2 | . . . . 1 . . . . . . . . . . . . . . . . 1 Recycling Units 10 | . . . . . . . . . . . . . . . . 1 3 . . . 6 Monitor 1 | . . . . . . . . . . . . . . . . . . . . . 1 Reject 3 | . . . . . . . . . . . . . . . . . 1 . . . 2 Recyclers 3 | . . . . . . . . . . . . . . . . 1 1 . . . 1 Mask 3 | . . . . . . . . . . . . . . . . . 1 . . . 2 Scanalyzers . | . . . . . . . . . . . . . . . . . . . . . . Garrison Access . | . . . . . . . . . . . . . . . . . . . . . . Data Cores Recovered 2 | . . . . . . . . . . . . . . 1 . . 1 . . . . Used . | . . . . . . . . . . . . . . . . . . . . . . Hacking Detections 42 | . 3 . . 2 8 . 9 . . . . 2 . 1 . 6 6 2 . . 3 Full Trace Events 8 | . 2 . . . 2 . 2 . . . . . . 1 . . . . . . 1 Feedback Events 2 | . . . . . 1 . . . . . . . . 1 . . . . . . . Corruption 2 | . . . . . 1 . . . . . . . . 1 . . . . . . . Feedback Blocked . | . . . . . . . . . . . . . . . . . . . . . . Robot Schematics Acquired 8 | . . . . . 1 . . . . 3 . . . . . . 4 . . . . Robots Built . | . . . . . . . . . . . . . . . . . . . . . . Authchips . | . . . . . . . . . . . . . . . . . . . . . . Time . | . . . . . . . . . . . . . . . . . . . . . . Total Robot Build Rating . | . . . . . . . . . . . . . . . . . . . . . . Part Schematics Acquired 47 | . . . . . 1 . . . . 17 . . . . . 13 16 . . . . Parts Built 7 | . . . . . . . 2 . . . . . . . . 3 . . . . 2 Authchips 4 | . . . . . . . . . . . . . . . . 3 . . . . 1 Time 444 | . . . . . . . 117 . . . . . . . . 201 . . . . 126 Total Part Build Rating 38 | . . . . . . . 14 . . . . . . . . 12 . . . . 12 Part Studies Acquired 2 | . . . . . 1 . . . . . . . . . . 1 . . . . . Parts Repaired . | . . . . . . . . . . . . . . . . . . . . . . Time . | . . . . . . . . . . . . . . . . . . . . . . Parts Recycled . | . . . . . . . . . . . . . . . . . . . . . . Recycled Matter . | . . . . . . . . . . . . . . . . . . . . . . Retrieved Matter . | . . . . . . . . . . . . . . . . . . . . . . Retrieved Components 10 | . . . . . . . . . . . . . . . . . 10 . . . . Parts Scanalyzed 4 | . . . . . 1 . . . . . . . . . . 2 . . . . 1 Part Schematics Acquired 3 | . . . . . 1 . . . . . . . . . . 2 . . . . . Parts Damaged . | . . . . . . . . . . . . . . . . . . . . . . Bothacking | -11 -10 -10 -10 -8 -7 -7 -7 -7 -7 -7 -6 -6 -6 -6 -6 -5 -5 -5 -5 -5 -4 ------------ Run | Yrd Mat Min Sub Mat Fac Was Fac Low Low Zio Pro Fac Was Fac DSF Fac Ext Cet Arc Hub Fac Used RIF Installer . | . . . . . . . . . . . . . . . . . . . . . . Robots Hacked . | . . . . . . . . . . . . . . . . . . . . . . Non-combat . | . . . . . . . . . . . . . . . . . . . . . . Combat . | . . . . . . . . . . . . . . . . . . . . . . Robot Hacks Applied . | . . . . . . . . . . . . . . . . . . . . . . Relay Couplers Released 3 | . . . . . . . . . . . . . . . . 2 . . . 1 . Machine Destruction 3 | . . . . . . . . . . . . . . . . 2 . . . 1 . Fabnet Peak Effective % . | . . . . . . . . . . . . . . . . . . . . . . Robots Rewired 16 | . . . . . 1 . . 5 . . . . . . . . 10 . . . . Allies Hacked 1 | . . . . . . . . . . . . . . . . 1 . . . . . Hacks Repelled . | . . . . . . . . . . . . . . . . . . . . . . Allies | -11 -10 -10 -10 -8 -7 -7 -7 -7 -7 -7 -6 -6 -6 -6 -6 -5 -5 -5 -5 -5 -4 -------- Run | Yrd Mat Min Sub Mat Fac Was Fac Low Low Zio Pro Fac Was Fac DSF Fac Ext Cet Arc Hub Fac Total Allies 100 | . . 4 . . 4 18 . 5 . 4 . . 20 . . 6 29 5 . 4 1 Largest Group 24 | . . 4 4 . 3 19 19 5 5 8 8 7 20 20 17 11 24 20 19 20 1 Highest-Rated Group 1053 | . . 71 71 . 48 465 465 92 92 232 232 216 792 792 654 462 831 1053 1022 908 32 Highest-Rated Ally 159 | . . 31 31 . 21 35 35 20 20 40 40 40 50 50 50 51 159 159 159 96 32 Zionite Dispatches 11 | . . . . . . . . . . . . 1 . . . 3 3 . . 3 1 Light 1 | . . . . . . . . . . . . . . . . . 1 . . . . Recon 3 | . . . . . . . . . . . . 1 . . . 1 . . . 1 . Fire 1 | . . . . . . . . . . . . . . . . . . . . 1 . Hacker 1 | . . . . . . . . . . . . . . . . 1 . . . . . Thermal Resupply 1 | . . . . . . . . . . . . . . . . . . . . 1 . Hacking Resupply 2 | . . . . . . . . . . . . . . . . . 2 . . . . Hover Resupply 2 | . . . . . . . . . . . . . . . . 1 . . . . 1 Total Orders 29 | . . . . . . . . . . . . 6 . . . 3 1 . . 17 2 STAY 5 | . . . . . . . . . . . . . . . . . . . . 4 1 DROP 3 | . . . . . . . . . . . . . . . . 1 . . . 1 1 EXPLORE 12 | . . . . . . . . . . . . 2 . . . . . . . 10 . RETURN 9 | . . . . . . . . . . . . 4 . . . 2 1 . . 2 . Ally Attacks 779 | . . . 37 . 32 12 149 . 4 . 17 59 . 1 51 102 123 51 14 127 . Total Damage 17969 | . . . 428 . 199 234 3961 . 45 . 541 814 . 61 1769 2385 2119 1020 375 4018 . Kills 123 | . . . 7 . 4 . 24 . 1 . . 7 . 1 12 20 11 6 4 26 . Allies Corrupted 10 | . . . . . 1 . . . . . . 1 . . . 3 . . . 5 . Allies Melted 4 | . . . . . . . . . . . . 2 . . . . . . . 2 . Intel | -11 -10 -10 -10 -8 -7 -7 -7 -7 -7 -7 -6 -6 -6 -6 -6 -5 -5 -5 -5 -5 -4 ------- Run | Yrd Mat Min Sub Mat Fac Was Fac Low Low Zio Pro Fac Was Fac DSF Fac Ext Cet Arc Hub Fac Active Infowar (turns) 15279 | 32 37 . . . . . . . . . . 655 309 29 156 987 1098 465 7502 699 3310 Optics 2634 | . . . . . . . . . . . . . . . . . . . . . 2634 Sensors 2479 | . . . . . . . . . . . . . . . . . . . . . 2479 Seismic 69 | 32 37 . . . . . . . . . . . . . . . . . . . . Decoding 15201 | . . . . . . . . . . . . 655 309 29 156 987 1098 465 7502 699 3301 T.N.C. 347 | . . . . . . . . . . . . . . . . 347 . . . . . Cloaking 175 | . . . . . . . . . . . . . 46 29 25 75 . . . . . Jamming 1120 | . . . . . . . . . . . . . . . . 258 167 . . . 695 Robot Analysis Total . | . . . . . . . . . . . . . . . . . . . . . . Derelict Logs Recovered 8 | . . 1 2 . . . . 1 2 2 . . . . . . . . . . . Drone Launches 23 | . . . . . . . . . . . . 6 . . . 2 1 . . 14 . Drone Recoveries 18 | . . . . . . . . . . . . 4 . . . 2 1 . . 11 . Decoded 0b10 Intel 72 | . . . . . . . . . . . . 15 1 2 2 10 15 2 1 12 12 Traps 37 | . . . . . . . . . . . . 4 . 2 . 4 12 . . 5 10 Emergency Access 19 | . . . . . . . . . . . . 1 . . 2 5 2 . . 7 2 Items 10 | . . . . . . . . . . . . 10 . . . . . . . . . Garrisons 1 | . . . . . . . . . . . . . . . . 1 . . . . . Exits 5 | . . . . . . . . . . . . . 1 . . . 1 2 1 . . Zionite Intel Received 15 | . . . . . . . . . . . . 2 . . . 2 5 . . 3 3 Branch Access 2 | . . . . . . . . . . . . 1 . . . . . . . . 1 Component Schematics 1 | . . . . . . . . . . . . . . . . . 1 . . . . Prototype Schematics 1 | . . . . . . . . . . . . . . . . 1 . . . . . Unaware Schematics 1 | . . . . . . . . . . . . . . . . . 1 . . . . Unaware Analyses 2 | . . . . . . . . . . . . 1 . . . . . . . 1 . Trap Installations 2 | . . . . . . . . . . . . . . . . . . . . 1 1 Active Terminals 2 | . . . . . . . . . . . . . . . . 1 1 . . . . Active Garrisons 3 | . . . . . . . . . . . . . . . . . 1 . . 1 1 Depthwide Sectors/-1 1 | . . . . . . . . . . . . . . . . . 1 . . . . Exploration | -11 -10 -10 -10 -8 -7 -7 -7 -7 -7 -7 -6 -6 -6 -6 -6 -5 -5 -5 -5 -5 -4 ------------- Run | Yrd Mat Min Sub Mat Fac Was Fac Low Low Zio Pro Fac Was Fac DSF Fac Ext Cet Arc Hub Fac Turns Passed 28852 | 126 322 758 2284 824 1258 410 1277 999 604 1495 689 1619 309 29 156 987 1098 465 7502 699 4942 Spaces Moved 13082 | 68 190 497 1400 392 1011 271 723 644 428 1067 277 536 445 37 252 1210 996 184 818 414 1222 Core 632 | 22 . . . . . . . . . . . . . . . . . . 594 . 16 Treads 82 | 46 7 . . . . . . . . . . . . . . . . . . . 29 Legs 424 | . . . . 153 . . . . . . . . . . . . . . . . 271 Wheels 2092 | . 183 497 1400 12 . . . . . . . . . . . . . . . . . Hover 8783 | . . . . 227 1011 271 723 644 428 1067 277 486 . . . 925 996 184 224 414 906 Flight 1069 | . . . . . . . . . . . . 50 445 37 252 285 . . . . . Fastest Speed 16 | 50 100 145 140 116 73 73 73 133 133 135 133 31 31 31 28 24 30 16 89 89 50 Average Speed 160 | 124 132 145 140 155 83 118 132 133 134 135 217 224 51 31 32 37 39 83 896 89 124 Slowest Speed 1200 | 160 160 145 145 510 138 133 133 135 135 135 400 760 191 31 108 150 96 98 1200 95 260 Overloaded Moves 33 | . . . . . . . . . . . 3 . . . . . 5 25 . . . Propulsion Burnouts . | . . . . . . . . . . . . . . . . . . . . . . Robots Hopped 2 | . . . . . . . . . . . . . 2 . . . . . . . . Potential Cave-ins . | . . . . . . . . . . . . . . . . . . . . . . Cave-ins Triggered . | . . . . . . . . . . . . . . . . . . . . . . Exploration Rate (%) 57 | 6 41 99 79 30 33 96 27 74 74 90 47 24 97 2 87 24 83 66 79 74 25 Regions Visited 21 Branch Regions 10 Pre-discovered Areas 11 | . . 1 2 . . . . . . 3 . . . . . . 5 . . . . Known Exits Taken 8 | . . . . 1 . . 1 1 . . . . . 1 . 1 1 1 . 1 . Unknown Exits Taken 8 | 1 1 1 1 . . . . . 1 1 1 . . . . . . . 1 . . Scrap Searched 17 | . . 1 4 . . . . 3 2 4 3 . . . . . . . . . . Spaces Dug 99 | . . . . 2 16 . 6 . . . . 7 . . . 4 37 2 . 1 24 Terrain Destroyed 792 | . 33 5 7 27 99 100 6 48 4 . . 131 . . . 46 151 3 1 6 125 Melee 10 | . . . . . . . 4 . . . . 4 . . . 1 1 . . . . Projectile 79 | . . . . 12 5 . 2 . . . . 5 . . . 5 . . . 2 48 AOE 690 | . 33 5 7 15 94 100 . 48 4 . . 122 . . . 39 147 . . . 76 Terrain Rammed . | . . . . . . . . . . . . . . . . . . . . . . Walls Destroyed . | . . . . . . . . . . . . . . . . . . . . . . Machines Disabled . | . . . . . . . . . . . . . . . . . . . . . . Actions | -11 -10 -10 -10 -8 -7 -7 -7 -7 -7 -7 -6 -6 -6 -6 -6 -5 -5 -5 -5 -5 -4 --------- Run | Yrd Mat Min Sub Mat Fac Was Fac Low Low Zio Pro Fac Was Fac DSF Fac Ext Cet Arc Hub Fac Total 19425 | 90 245 519 1588 521 1282 327 963 754 454 1122 331 836 521 53 322 1676 1541 462 958 639 4221 Wait 4159 | 1 17 4 56 28 60 11 135 26 12 36 18 126 57 17 23 335 307 238 121 150 2381 Move 13059 | 67 189 496 1399 391 1011 270 722 643 427 1066 276 536 440 36 251 1209 995 183 817 413 1222 Hop 2 | . . . . . . . . . . . . . 2 . . . . . . . . Pick Up 190 | 5 12 7 12 15 16 3 7 4 3 6 2 11 3 . 5 17 9 3 . 9 41 Fast Attach 172 | 7 1 . . 9 15 8 6 1 1 1 6 23 6 . 9 20 5 8 3 4 39 Attach 98 | . . . 2 6 11 . 4 6 2 3 2 10 1 . 3 10 5 1 . . 32 Detach 24 | . . . . . 4 . . 2 2 1 . 3 2 . 1 4 . . . . 5 Swap 238 | . 9 4 14 12 30 5 6 2 2 1 5 24 3 . . 21 24 4 1 10 61 Drop 300 | . 7 . 17 16 42 11 17 3 2 7 4 31 7 . 10 30 10 11 3 8 64 Fire 901 | 10 10 8 88 44 84 19 27 8 3 . 11 51 . . 3 26 62 14 13 44 376 Melee 58 | . . . . . . . 13 10 . 1 7 18 . . 2 4 3 . . . . Ram 1 | . . . . . 1 . . . . . . . . . . . . . . . . Kick . | . . . . . . . . . . . . . . . . . . . . . . Crush . | . . . . . . . . . . . . . . . . . . . . . . Escape Stasis 67 | . . . . . . . 26 . . . . . . . 15 . 26 . . . . Rewire 152 | . . . . . 8 . . 49 . . . . . . . . 95 . . . . Trap . | . . . . . . . . . . . . . . . . . . . . . . Miscellaneous 4 | . . . . . . . . . . . . 3 . . . . . . . 1 . Route ------- -11/Scrapyard -10/Materials -10/Mines (discovered 3 exits: [*Mat x2] / *Sub) -10/Subcaves (discovered 3 exits: *Mat x2 / [*Rec]) -8/Materials (discovered 2 exits: *Fac x2) -7/Factory -7/Waste -7/Factory (discovered 2 exits: *Low x2) -7/Lower Caves -7/Lower Caves (discovered 2 exits: *Fac / *Zio) -7/Zion -6/Proximity Caves -6/Factory (discovered 6 exits: Fac x4 / Low x2) -6/Waste -6/Factory -6/DSF -5/Factory -5/Extension (discovered 3 exits: *Fac x2 / *Cet) -5/Cetus (discovered 2 exits: *Fac / *Arc) -5/Archives (discovered 3 exits: Fac / *Hub x2) -5/Hub_04(d) (discovered 3 exits: *Fac x3) -4/Factory (discovered 4 exits: *Res / *Upp x2 / Arm) History --------- Turn | Location | Event 5 | -11/Scrapyard | Discovered new exit (range 16) 127 | -11/Scrapyard | Entered Materials 317 | -10/Materials | Build established: Mutant 409 | -10/Materials | Discovered new exit (range 10) 449 | -10/Materials | Entered Mines 584 | -10/Mines | Discovered new exit (range 13) 636 | -10/Mines | Met a Derelict shopkeep closing up shop 817 | -10/Mines | Discovered new exit (range 7) 883 | -10/Mines | Learned location of Storage (-9) 994 | -10/Mines | Assisted by bots powering up and referring to "LRC-V3" 1047 | -10/Mines | Received a Mining Laser from a helpful Derelict 1183 | -10/Mines | Discovered new exit (range 13) 1207 | -10/Mines | Entered Subcaves 1207 | -10/Subcaves | Accompanied by 4 allies 1207 | -10/Subcaves | Learned 2 Materials zone layouts 1217 | -10/Subcaves | Learned location of Zion (-7) 1217 | -10/Subcaves | Met a Zionite searching for "candidates" 1710 | -10/Subcaves | Discovered new exit (range 8) 1939 | -10/Subcaves | Disturbed a concealed Subdweller 2149 | -10/Subcaves | Shifting Twisted Machinery released Sub. Monowheel 2232 | -10/Subcaves | Disturbed a concealed Subdweller 3420 | -10/Subcaves | Visited 4L-MR0's lab 3435 | -10/Subcaves | Found Arachnoskeleton 3466 | -10/Subcaves | Discovered new exit (range 16) 3467 | -10/Subcaves | Discovered new exit (range 12) 3491 | -10/Subcaves | Entered Materials 3491 | -8/Materials | Evolved 4 slots: Propulsion x2, Weapon x2 3492 | -8/Materials | Identified exit to Factory 3499 | -8/Materials | Attached Arachnoskeleton, gained temporary slots: Propulsion x3 3798 | -8/Materials | Build established: Tank 4145 | -8/Materials | Discovered exit to Factory (range 9) 4315 | -8/Materials | Entered Factory 4315 | -7/Factory | Evolved 2 slots: Utility x2 4606 | -7/Factory | Build established: Gunner 5115 | -7/Factory | First assault squad dispatched 5161 | -7/Factory | Discovered new exit (range 10) 5555 | -7/Factory | Central database locked down 5573 | -7/Factory | Sucked down chute 5573 | -7/Factory | Entered Waste 5578 | -7/Waste | Spotted C-40 Crusher 5588 | -7/Waste | 1 allies followed down the chute 5600 | -7/Waste | Spotted C-40 Crusher 5602 | -7/Waste | Spotted C-40 Crusher 5608 | -7/Waste | Destroyed C-40 Crusher 5613 | -7/Waste | Destroyed C-40 Crusher 5616 | -7/Waste | Destroyed C-40 Crusher 5626 | -7/Waste | Spotted C-40 Crusher 5633 | -7/Waste | Spotted C-40 Crusher 5646 | -7/Waste | Destroyed C-40 Crusher 5652 | -7/Waste | Destroyed C-40 Crusher 5660 | -7/Waste | Spotted C-40 Crusher 5672 | -7/Waste | Destroyed C-40 Crusher 5717 | -7/Waste | Warlord forces began an assault 5820 | -7/Waste | Build established: Scavenger-Gunner 5944 | -7/Waste | Discovered new exit (range 13) 5983 | -7/Waste | Entered Factory 5983 | -7/Factory | Accompanied by 19 allies 6247 | -7/Factory | Fabricated Antimatter Reactor (x2) 6436 | -7/Factory | Build established: Derelict-Tank 6555 | -7/Factory | Garrison activated, responded to threat 6586 | -7/Factory | Lost 6 allies 6757 | -7/Factory | Garrison activated, responded to threat 6776 | -7/Factory | Identified exit to Lower Caves 6805 | -7/Factory | Lost 6 allies 7260 | -7/Factory | Entered Lower Caves 7303 | -7/Lower Caves | Encountered a Warlord checkpoint 7315 | -7/Lower Caves | Build established: Mutant 7517 | -7/Lower Caves | Identified exit to Lower Caves 7829 | -7/Lower Caves | Attracted the attention of an 0b10 outpost 7869 | -7/Lower Caves | Destroyed 7 combat bots 8064 | -7/Lower Caves | Attacked by a delusional Derelict stockpiling Unaware 8259 | -7/Lower Caves | Entered another Lower Caves area 8259 | -7/Lower Caves | Accompanied by 5 allies 8347 | -7/Lower Caves | Discovered new exit (range 8) 8391 | -7/Lower Caves | Build established: Commander-Mutant 8788 | -7/Lower Caves | Learned Factory terminal intel 8791 | -7/Lower Caves | Discovered new exit (range 12) 8807 | -7/Lower Caves | Encountered a Warlord checkpoint 8863 | -7/Lower Caves | Entered Zion 8863 | -7/Zion | Accompanied by 4 allies 8912 | -7/Zion | Found CR-A16's Pointy Stick 8963 | -7/Zion | System corruption cleaned by Quarantine Array 9025 | -7/Zion | Discovered new exit (range 15) 9238 | -7/Zion | Given A8's code to call for help 9429 | -7/Zion | Given the Hacking Drone Bay 9432 | -7/Zion | Found Prototype Device 9480 | -7/Zion | Acquired unknown access codes intercepted by a Zionite 9554 | -7/Zion | Learned location of Warlord (-5) 9644 | -7/Zion | Learned Factory stockpile data 10012 | -7/Zion | Met Imprinter 10036 | -7/Zion | Imprinted 10038 | -7/Zion | Declared Zion's savior 10358 | -7/Zion | Entered Proximity Caves 10358 | -6/Proximity Caves | Accompanied by 8 allies 10524 | -6/Proximity Caves | Spotted B-75 Beast 10548 | -6/Proximity Caves | Revealed the true nature of CR-A16's Pointy Stick 10551 | -6/Proximity Caves | Destroyed B-75 Beast 10731 | -6/Proximity Caves | Discovered new exit (range 5) 10755 | -6/Proximity Caves | Attracted the attention of an 0b10 checkpoint 10830 | -6/Proximity Caves | Build established: Mutant 11047 | -6/Proximity Caves | Entered Factory 11047 | -6/Factory | Accompanied by 7 allies 11047 | -6/Factory | Evolved 2 slots: Propulsion x1, Utility x1 11049 | -6/Factory | Loaded intel: 26 terminal locations 11103 | -6/Factory | Identified Hacking Drone Bay 11199 | -6/Factory | Lost 3 allies 11269 | -6/Factory | Retrieved Zion intel report: Branch Access 11269 | -6/Factory | Identified exit to Lower Caves 11270 | -6/Factory | Zion Recon squad teleported in 11534 | -6/Factory | Found Prototype Launcher 11534 | -6/Factory | Identified Rocket Array 11540 | -6/Factory | Found Rocket Array 11675 | -6/Factory | Found Launcher Loader 11891 | -6/Factory | Spotted B-75 Beast 11900 | -6/Factory | Allies destroyed B-75 Beast 11984 | -6/Factory | P-60 Hacker assimilated allied 00-EU2(M) 12041 | -6/Factory | Zion dispatch access revoked 12128 | -6/Factory | Identified exit to Factory 12181 | -6/Factory | Retrieved Zion intel report: Unaware Analyses 12382 | -6/Factory | Terminal network hard line cut 12484 | -6/Factory | Lost 4 parts (3n1w) 12590 | -6/Factory | Garrison activated, responded to threat 12666 | -6/Factory | Sucked down chute 12666 | -6/Factory | Entered Waste 12667 | -6/Waste | Joined by Warlord forces that had cleared the area 12766 | -6/Waste | Identified exit to Factory 12793 | -6/Waste | Found Broken Heavy Servo Lattice 12975 | -6/Waste | Entered Factory 12975 | -6/Factory | Accompanied by 20 allies 12985 | -6/Factory | Identified exit to DSF 13004 | -6/Factory | Entered DSF 13004 | -6/DSF | Accompanied by 17 allies 13021 | -6/DSF | Additional patrols routed to DSF 13076 | -6/DSF | Discovered exit to Factory (range 16) 13086 | -6/DSF | Lost 7 allies 13153 | -6/DSF | Sterilization system engaged 13160 | -6/DSF | Entered Factory 13160 | -5/Factory | Accompanied by 10 allies 13160 | -5/Factory | Evolved 2 slots: Propulsion x1, Utility x1 13161 | -5/Factory | Identified exit to Extension 13280 | -5/Factory | Noticed a derelict Sapper rigging charges 13330 | -5/Factory | Zion Hover Resupply teleported in 13399 | -5/Factory | Fabricated Cld. Airjet (x1) 13470 | -5/Factory | Fabricated Cld. Airjet? 13571 | -5/Factory | Fabricated Cld. Airjet? 13677 | -5/Factory | Allied Derelicts emerged from ambush trap array 13680 | -5/Factory | Lost 3 allies 13760 | -5/Factory | First assault squad dispatched 13873 | -5/Factory | Central database locked down 13910 | -5/Factory | Retrieved Zion intel report: Active Terminals 13911 | -5/Factory | Zion Recon squad teleported in 13984 | -5/Factory | Lost 5 allies 13997 | -5/Factory | Retrieved Zion intel report: Prototype Schematics 13998 | -5/Factory | Zion Hacker squad teleported in 14147 | -5/Factory | Entered Extension 14147 | -5/Extension | Accompanied by 3 allies 14159 | -5/Extension | Build established: Gunner 14159 | -5/Extension | Rescued a captive Derelict 14201 | -5/Extension | Rescued a captive Derelict 14203 | -5/Extension | Rescued a captive Derelict 14212 | -5/Extension | Rescued a captive Derelict 14261 | -5/Extension | Rescued a captive Derelict 14274 | -5/Extension | Rescued a captive Derelict 14287 | -5/Extension | Zion Light squad teleported in 14314 | -5/Extension | Found Prototype Protection 14314 | -5/Extension | Identified Zio. Weapon Casing 14345 | -5/Extension | Zion Hacking Resupply teleported in 14353 | -5/Extension | Rescued a captive Derelict 14355 | -5/Extension | Rescued a captive Derelict 14472 | -5/Extension | Disrupted transfer network 14526 | -5/Extension | Zion Hacking Resupply teleported in 14529 | -5/Extension | Rescued a captive Derelict 14529 | -5/Extension | Rescued a captive Derelict 14747 | -5/Extension | First assault squad dispatched 14817 | -5/Extension | Build established: Commander-Gunner 14818 | -5/Extension | Spotted B-75 Beast 14857 | -5/Extension | Destroyed B-75 Beast 14890 | -5/Extension | Spotted B-75 Beast 14891 | -5/Extension | Lost 3 allies 14899 | -5/Extension | Identified exit to Factory 14902 | -5/Extension | Destroyed 7 combat bots 14906 | -5/Extension | Allies destroyed B-75 Beast 14917 | -5/Extension | Lost 3 parts (2n1w) 14931 | -5/Extension | Lost 3 allies 14961 | -5/Extension | Retrieved Zion intel report: Component Schematics 15027 | -5/Extension | Identified exit to Cetus 15051 | -5/Extension | Retrieved Zion intel report: Depthwide Sectors/-4 15055 | -5/Extension | Retrieved Zion intel report: Active Garrisons 15057 | -5/Extension | Retrieved Zion intel report: Unaware Schematics 15058 | -5/Extension | Rescued a captive Derelict 15104 | -5/Extension | Retrieved Zion intel report: Active Terminals 15150 | -5/Extension | Lost 4 allies 15159 | -5/Extension | Rescued A7 15166 | -5/Extension | Rescued a captive Derelict 15167 | -5/Extension | Rescued a captive Derelict 15216 | -5/Extension | Destroyed 10 combat bots 15245 | -5/Extension | Entered Cetus 15245 | -5/Cetus | Accompanied by 16 allies (A7) 15250 | -5/Cetus | Acquired a Cetus Manufacturing Module code from A7 15251 | -5/Cetus | Spotted Cetus Guard 15251 | -5/Cetus | Spotted Cetus Guard 15258 | -5/Cetus | Spotted Cetus Guard 15258 | -5/Cetus | Destroyed Cetus Guard 15258 | -5/Cetus | Spotted Cetus Guard 15261 | -5/Cetus | Destroyed Cetus Guard 15265 | -5/Cetus | Destroyed Cetus Guard 15275 | -5/Cetus | Allies destroyed Cetus Guard 15344 | -5/Cetus | Started Cetus Manufacturing Module 15354 | -5/Cetus | Escorted A7 to Cetus Mainframe 15362 | -5/Cetus | Identified exit to Archives 15369 | -5/Cetus | Manufactured an Enhanced Grunt 15394 | -5/Cetus | Manufactured an Enhanced Grunt 15419 | -5/Cetus | Manufactured an Enhanced Grunt 15444 | -5/Cetus | Manufactured an Enhanced Grunt 15469 | -5/Cetus | Manufactured an Enhanced Grunt 15475 | -5/Cetus | Spotted Cetus Guard 15475 | -5/Cetus | Spotted Cetus Guard 15476 | -5/Cetus | Destroyed Cetus Guard 15479 | -5/Cetus | Allies destroyed Cetus Guard 15479 | -5/Cetus | Spotted Cetus Guard 15480 | -5/Cetus | Spotted Cetus Guard 15482 | -5/Cetus | Allies destroyed Cetus Guard 15487 | -5/Cetus | Allies destroyed Cetus Guard 15501 | -5/Cetus | Scared off Revision 17 15603 | -5/Cetus | Build established: Commander-Tank 15710 | -5/Cetus | Entered Archives 15710 | -5/Archives | Accompanied by 20 allies (A7) 15715 | -5/Archives | Received a hacking code to weaken MAIN.C 15746 | -5/Archives | Discovered new exit (range 16) 15757 | -5/Archives | Discovered new exit (range 16) 23212 | -5/Archives | Entered Hub_04(d) 23212 | -5/Hub_04(d) | Accompanied by 17 allies 23287 | -5/Hub_04(d) | Discovered exit to Factory (range 9) 23288 | -5/Hub_04(d) | Zion Fire squad teleported in 23288 | -5/Hub_04(d) | Discovered exit to Factory (range 20) 23309 | -5/Hub_04(d) | Zion Thermal Resupply teleported in 23442 | -5/Hub_04(d) | Discovered exit to Factory (range 36) 23443 | -5/Hub_04(d) | Spotted B-75 Beast 23446 | -5/Hub_04(d) | Retrieved Zion intel report: Active Garrisons 23460 | -5/Hub_04(d) | Allies destroyed B-75 Beast 23469 | -5/Hub_04(d) | Allied Derelicts emerged from ambush trap array 23473 | -5/Hub_04(d) | Retrieved Zion intel report: Trap Installations 23474 | -5/Hub_04(d) | Zion Recon squad teleported in 23530 | -5/Hub_04(d) | Build established: Commander-Gunner 23582 | -5/Hub_04(d) | Lost 5 allies 23598 | -5/Hub_04(d) | Retrieved Zion intel report: Unaware Analyses 23616 | -5/Hub_04(d) | Network Hub disabled 23616 | -5/Hub_04(d) | Network Hub disabled 23646 | -5/Hub_04(d) | Spotted Lightning 23648 | -5/Hub_04(d) | Lost 8 allies 23704 | -5/Hub_04(d) | Network Hub disabled 23862 | -5/Hub_04(d) | Network Hub disabled 23891 | -5/Hub_04(d) | Found Prototype Device 23907 | -5/Hub_04(d) | System corruption reached 10% 23911 | -5/Hub_04(d) | Entered Factory 23911 | -4/Factory | Evolved 2 slots: Utility x2 23935 | -4/Factory | Build established: Scavenger-Tank 24247 | -4/Factory | Spotted B-86 Titan 24312 | -4/Factory | Discovered new exit (range 2) 24313 | -4/Factory | Identified exit to Research 24359 | -4/Factory | Retrieved Zion intel report: Branch Access 24359 | -4/Factory | Identified exit to Upper Caves 24359 | -4/Factory | Identified exit to Armory 24367 | -4/Factory | Retrieved Zion intel report: Active Garrisons 24411 | -4/Factory | First assault squad dispatched 24609 | -4/Factory | Retrieved Zion intel report: Trap Installations 24610 | -4/Factory | Zion Hover Resupply teleported in 24615 | -4/Factory | Build established: Skirmisher 24724 | -4/Factory | Unchained authorized (CL-0N3) 25127 | -4/Factory | Build established: Tank 25152 | -4/Factory | U-05 Engineer reconstituted as D-83 Annihilator 25157 | -4/Factory | D-83 Annihilator reconstituted as CL-0N3 25469 | -4/Factory | Terminal network hard line cut 25650 | -4/Factory | U-05 Engineer reconstituted as Combat Programmer 25656 | -4/Factory | Destroyed Combat Programmer 25656 | -4/Factory | Combat Programmer reconstituted as CL-0N3 25992 | -4/Factory | Build established: Skirmisher 26086 | -4/Factory | T-07 Excavator reconstituted as Armor Guard 26086 | -4/Factory | Spotted Armor Guard 26097 | -4/Factory | Destroyed Armor Guard 26097 | -4/Factory | Armor Guard reconstituted as CL-0N3 26359 | -4/Factory | K-01 Serf reconstituted as H-81 Overseer 26372 | -4/Factory | H-81 Overseer reconstituted as CL-0N3 26451 | -4/Factory | Destroyed 9 combat bots 26460 | -4/Factory | Lost 4 parts (3n1w) 26901 | -4/Factory | Spotted Immortal 26926 | -4/Factory | Destroyed Immortal 26926 | -4/Factory | Immortal reconstituted as CL-0N3 26978 | -4/Factory | Found Quantum Capacitor 27263 | -4/Factory | Build established: Mutant 28373 | -4/Factory | Core integrity fell below 50% 28436 | -4/Factory | U-05 Engineer reconstituted as Quarantine Guard 28436 | -4/Factory | Spotted Quarantine Guard 28449 | -4/Factory | Destroyed 15 combat bots 28468 | -4/Factory | Destroyed Quarantine Guard 28468 | -4/Factory | Quarantine Guard reconstituted as CL-0N3 28490 | -4/Factory | Lost 7 parts (3p1n1u2w) 28636 | -4/Factory | Fabricated Hvy. Gatling Laser (x1) 28687 | -4/Factory | Fabricated Hvy. Gatling Laser (x1) 28714 | -4/Factory | Build established: Scavenger-Gunner 28807 | -4/Factory | System corruption reached 10% 28824 | -4/Factory | High security lockdown imminent 28833 | -4/Factory | Core integrity fell below 20% 28853 | -4/Factory | Destroyed by H-77 Assassin with Coil Gun Last Messages --------------- 28845_ Penetrated by Slug. 28845_ Rnf. Fission Core destroyed. 28845_ G-67 Veteran suffers critical hit (Destroy). 28845_ Penetrated by Slug. 28845_ Arm. Leg destroyed. 28845_ Slug penetrates Y-64 Sentinel. 28845_ Slug penetrates Wall. 28846_ M-36 Artificer fits Backup Laser VII on G-67 Veteran. 28847_ Penetrated by Slug. 28848_ Slug penetrates W-44 Eye. 28849_ Y-64 Sentinel heat short circuits Wave Gun. 28850_ Slug penetrates Wall. 28850_ Penetrated by Slug. 28852_ The unstable cave ceiling collapses. 28852_ Slug penetrates W-44 Eye. 28853_ Slug penetrates Wall. 28853_ Penetrated by Slug. Map ----- +----------------------------------------------------+ | ?????????????????????????????????????????????????? | | ?????????????????????????????????????????????????? | | ?????????????????????????????????????????????????? | | ?????????????????????????????????????????????????? | | ?????????????????????????????????????????????????? | | ?????????????????????????????????????????????????? | | ?????????????????????????????????????????????????? | | ?????????????????????????????????????????????????? | | ?????????????????????????????????????????????????? | | ?????????????????????????????????????????????????? | | ????????????????????????????????? ?????????????? | | ???????????????????????????????? | ???????????? | | ???????????????????????????????? !%= ?????? | | ???????????????????????????????? = ! ???? | | ???????????????????????????????? ! / ?? | | ???????????????????????????????? |% ?? | | ????????????????????????????????# ! ?? | | ???????????????????????????????## ^ ?? | | ???????????????????????????????# ??? | | ???????????????????????????????# ^ #???? | | ???????????????????????????????# ^^ #???? | | ???????????????????????????????# ^ #???? | | ????????????????###########?????# ^ #???? | | ?????????? ## #?????# # ###### | | ?????????? ####### # | | ?????????? @ ! # | | ?????????? w h !!! # | | ?????????? > Ym!]= "# | | ??????????? ![! "%+ | | ??????????? "# | | ???????????? *###### T##### # | | ????????????##### h #????####?### # | | ????????????????#####+#####???????????# # | | ??????????????????????????????????????# # | | ??????????????????????????????????????# # | | ??????????????????????????????????????# # | | ??????????????????????????????????????# # | | ??????????????????????????????????????# # | | ??????????????????????????????????????# # | | ??????????????????????????????????????############ | | ????????????????????????????????????????#^ ^ !### | | ????????????????????????????????????????#^ ^ # | | ????????????????????????????????????????# ^ + | | ????????????????????????????????????????# " " # | | ????????????????????????????????????????#^"R" ### | | ????????????????????????????????????????# """ #?? | | ????????????????????????????????????????########?? | | ?????????????????????????????????????????????????? | | ?????????????????????????????????????????????????? | | ?????????????????????????????????????????????????? | +----------------------------------------------------+ Best States ------------- Heat Dissipation 70 Coolant Potential 100 Energy Generation 27 Energy Capacity 350 Matter Stores 550 Matter Capacity 800 Sight Range 22 Robot Scan Range 18 Terrain Scan Density 10 Jamming Range 16 Cloak Strength 3 Corruption Containment 8 Armor Coverage 600 Propulsion Shielding 66 Weapon Shielding 100 Evasion (%) 65 Targeting Accuracy 8 Launcher Accuracy 20 Target Analysis 5 Core Analysis 9 Armor Integrity Analysis 30 Recoil Reduction 2 Matter Filtering 30 Particle Charging 25 Offensive Hacking 22 Authchip Count 4 Item Schematics ----------------- Cld. Airjet | -7/Factory | Scanalyzed Weapon Cycler | -7/Zion | Archive System Guard | -7/Zion | Archive Imp. Shield Generator | -7/Zion | Archive Nuclear Pulse Thruster | -7/Zion | Archive Recalibrator | -7/Zion | Archive Matter Compressor | -7/Zion | Archive Powered Hammer | -7/Zion | Archive Arm. Medium Treads | -7/Zion | Archive Enh. Gauss Cannon | -7/Zion | Archive Core Analyzer | -7/Zion | Archive Proton Cannon | -7/Zion | Archive Med. Treads | -7/Zion | Archive Adv. Terrain Scanner | -7/Zion | Archive Lgt. Fission Core | -7/Zion | Archive Microactuators | -7/Zion | Archive Battle Cannon | -7/Zion | Free Flamer | -7/Zion | Free Heavy Servo Lattice | -5/Factory | Scanalyzed Cld. Gravmag System | -5/Factory | Scanalyzed Biomechanical Wings | -5/Factory | Z-intel Thermal Defense Suite | -5/Factory | Z-intel Ion Burst Cannon | -5/Factory | Z-intel Enh. Flexi-carbon Leg | -5/Factory | Z-intel Force Rifle | -5/Factory | Z-intel Imp. Spread Laser | -5/Factory | Z-intel Imp. Thermal Defense Suite | -5/Factory | Z-intel Enh. Fission Core | -5/Factory | Z-intel Cld. Aerolev Unit | -5/Factory | Z-intel Hvy. Gatling Laser | -5/Factory | Z-intel Neutron Cannon | -5/Factory | Z-intel Imp. Medium Treads | -5/Extension | Z-intel Imp. Gravmag System | -5/Extension | Z-intel Power Sword | -5/Extension | Z-intel Lrg. Storage Unit | -5/Extension | Z-intel Hardlight Generator | -5/Extension | Z-intel Mic. Nuclear Core | -5/Extension | Z-intel Mass Driver | -5/Extension | Z-intel Remote Shield | -5/Extension | Z-intel Imp. Plasma Cutter | -5/Extension | Z-intel Plasma Rifle | -5/Extension | Z-intel Power Amplifier | -5/Extension | Z-intel Arm. Leg | -5/Extension | Z-intel Triangulator | -5/Extension | Z-intel Adv. Signal Interpreter | -5/Extension | Z-intel Angular Momentum Engine | -5/Extension | Z-intel Hcp. Storage Unit | -5/Extension | Z-intel Robot Schematics ------------------ M-28 Smith | -7/Factory | Downloaded S-27 Virus | -7/Zion | Archive R-06 Scavenger | -7/Zion | Archive C-57 Dissector | -7/Zion | Archive C-35 Carver | -5/Extension | Z-intel A-15 Conveyor | -5/Extension | Z-intel M-22 Extractor | -5/Extension | Z-intel I-47 Archangel | -5/Extension | Z-intel Fabricated ------------ Antimatter Reactor | x2 | -7/Factory | Preloaded Cld. Airjet | x1 | -5/Factory | Authchip Cld. Airjet | x1 | -5/Factory | Authchip Cld. Airjet | x1 | -5/Factory | Authchip Hvy. Gatling Laser | x1 | -4/Factory | Authchip Hvy. Gatling Laser | x1 | -4/Factory Repaired ---------- Nothing Studied --------- Gravmag System | -7/Factory | Hacked Hyp. Gauss Rifle | -5/Factory | Hacked Alien Tech Used ----------------- None Achievements -------------- King Drone Challenges ------------ None Game ------ Seed BiometalNeutronAirjet Manual? 0 Play Time 06:08:05 Cumulative 982.2 hours Start 2025.10.23 @ 02:02:21 End 2025.10.24 @ 08:26:22 Sessions 15 Manual Loads 0 Difficulty Rogue Special Mode None Game No. 358 Rogue 353 Adventurer 4 Explorer 1 Win Type - Total 19 Types 13/1/1/1/0/1/0/0/1/1 Lore% 96 Gallery% 92 Achievement% 76 Wizard Run 0 Options --------- Layout 2 ASCII 0 Keyboard 0 Movement Numpad Keybinds 0 Fullscreen 2 Font 24/Smallcaps Map View 50x44 Zoom Use 0% Tactical HUD 1 Map Filters NONE Filters NONE Steam 1 RUN: 18cb07bf-856d-4e84-b8b8-f666ff35f63d